[Event "FRA-ch Teams Top 16-A 2022"]
[Site "Chartres"]
[Date "2022.06.11"]
[Round "3.21"]
[White "Bellahcene, Bilel"]
[Black "Ramirez Garcia, Jorge Alberto"]
[Result "1-0"]
[ECO "E71"]
[WhiteElo "2521"]
[BlackElo "2242"]
[Annotator "TA"]
[PlyCount "83"]
[EventDate "2022.06.09"]
[EventType "team-tourn"]
[EventCountry "FRA"]
[SourceTitle "playchess.com"]
[Source "ChessBase"]
[SourceQuality "1"]
[TimeControl "40/5400+30:1800+30"]

{[%evp 12,83,37,28,90,75,101,105,101,92,96,100,199,187,181,180,183,179,189,200,181,140,151,129,172,170,201,62,39,23,25,26,26,32,55,54,152,131,131,127,190,106,112,89,89,89,87,91,89,70,135,139,178,167,225,225,276,273,429,424,418,400,391,384,370,364,688,675,1408,1528,1228,1211,29994,824]} 1. d4 {[%emt 0:04:15]} Nf6 {[%emt 0:00:07]} 2. c4 {[%emt 0:00:05]} g6 {[%emt 0:00:06]} 3. Nc3 {[%emt 0:00:08]} Bg7 {[%emt 0:00:05]} 4. e4 {[%emt 0:00:14]} d6 {[%emt 0:00:05]} 5. h3 {[%emt 0:00:31]} O-O {[%emt 0:00:46]} 6. Be3 {[%emt 0:00:07]} e5 {[%emt 0:02:28]} 7. d5 {[%emt 0:00:23]} c5 {[%emt 0:04:21] E71: King's Indian: 4 e4 d6 5 h3.} (7... Na6 $11 {keeps the balance.}) 8. g4 {[%emt 0:00:37]} a6 {[%emt 0:00:29]} 9. a4 {[%emt 0:04:16]} Bd7 {[%emt 0:09:52] [#] White is better.} 10. Nge2 $146 {[%emt 0:04:21]} ({Predecessor:} 10. Qd2 Qa5 11. Ra3 Rc8 12. Be2 Qc7 13. g5 Ne8 14. h4 Ra7 15. h5 b6 16. Nf3 {½-½ (41) Antonsen,M (2400)-Markussen,P (1873) Helsingor 2019}) 10... Ne8 {[%emt 0:01:22]} 11. Qd2 {[%emt 0:09:21]} f5 {[%emt 0:03:35]} (11... Bf6 $16) 12. gxf5 {[%emt 0:00:23]} gxf5 {[%emt 0:00:22]} 13. exf5 {[%emt 0:00:27]} Bxf5 {[%emt 0:01:38]} 14. Ng3 {[%emt 0:01:03]} Nd7 {[%emt 0:04:10][%cal Bb8d7,Bd7e5,Be5g6,Bg6f4][%mdl 32]} 15. Nxf5 {[%emt 0:02:11]} Rxf5 {[%emt 0:00:12]} 16. Bd3 {[%emt 0:00:43]} e4 {[%emt 0:00:41]} 17. Bxe4 {[%emt 0:12:32]} Ne5 {[%emt 0:03:42]} 18. Qe2 {[%emt 0:01:40]} Rf8 {[%emt 0:03:06]} 19. Bg2 {[%emt 0:11:44] A strong pair of Bishops.} ({Worse is} 19. Qh5 Nf6 20. Qe2 Nxe4 21. Nxe4 b5 $15) ({White should play} 19. f4 $18 Nd7 20. Bd2 (20. Qg4 Kh8 $16)) 19... Ng6 {[%emt 0:12:22]} 20. Ne4 {[%emt 0:03:13] aiming for Ng5.} Nf4 $1 {[%emt 0:04:42]} 21. Bxf4 {[%emt 0:01:25]} Rxf4 {[%emt 0:00:06]} 22. O-O $36 {[%emt 0:00:02][%cal Bh1f1,Bf1e1,Be1e6][%mdl 2080] White has good play.} Qh4 {[%emt 0:01:56]} 23. Ra3 {[%emt 0:01:02]} Rd8 {[%emt 0:10:10]} ({Black should try} 23... Qe7 $14) 24. Rg3 $16 {[%emt 0:03:06] Ng5 is the strong threat.} h6 {[%emt 0:14:46] Against Ng5} 25. Re1 {[%emt 0:03:18]} Nf6 {[%emt 0:05:41] [#]} (25... Kh8 $16 {was worth a try.} 26. Rg4 Rxg4 27. Qxg4 Qxg4 28. hxg4 Bd4) 26. Nxf6+ {[%emt 0:16:01]} (26. Nxd6 $1 $18 {[%mdl 512]} Rxd6 27. Qe7) 26... Qxf6 {[%emt 0:00:51]} 27. Qe6+ {[%emt 0:00:02]} Kh8 {[%emt 0:01:39]} 28. Qxf6 {[%emt 0:11:25] White is more active.} Bxf6 {[%emt 0:00:12]} 29. Re6 {[%emt 0:00:02]} Bg5 {[%emt 0:01:23]} 30. Rg4 {[%emt 0:03:28]} Rxg4 {[%emt 0:03:11]} (30... Rdf8 $14) 31. hxg4 $14 {[%emt 0:00:19][%mdl 4096] Endgame KRB-KRB} Kg7 {[%emt 0:03:26]} 32. Be4 {[%emt 0:00:24]} Bf6 {[%emt 0:01:08]} (32... Bf4 $142 33. Kg2 Rf8) 33. b3 $18 {[%emt 0:02:29]} Bg5 {[%emt 0:05:19]} 34. Kg2 {[%emt 0:00:10]} Kf7 {[%emt 0:01:24]} (34... Bd2 $142 35. Bf5 Kf8) 35. Kg3 {[%emt 0:02:04]} Bf6 {[%emt 0:00:15]} 36. f4 {[%emt 0:00:09][%cal Bf2f4,Bf4f5,Bf5f6][%mdl 32]} Rd7 {[%emt 0:00:18]} 37. Kf3 {[%emt 0:00:04]} Rd8 {[%emt 0:01:40]} 38. Bf5 {[%emt 0:00:04]} Bg7 $2 {[%emt 0:00:44]} (38... a5 39. Kg3 b6) 39. Bg6+ {[%emt 0:00:14]} Kf8 {[%emt 0:00:08]} 40. f5 {[%emt 0:01:22]} Bd4 {[%emt 0:00:42]} 41. f6 {[%emt 0:30:35]} Kg8 {[%emt 0:05:06]} 42. Re8+ {[%emt 0:00:00] Weighted Error Value: White=0.12 (very precise) /Black=0.59} 1-0

[Event "FRA-ch Teams Top 16-A 2022"]
[Site "Chartres"]
[Date "2022.06.11"]
[Round "3.23"]
[White "Le Roux, Jean-Pierre"]
[Black "Lemonnier, Remi"]
[Result "0-1"]
[ECO "D11"]
[WhiteElo "2513"]
[BlackElo "2033"]
[Annotator "TA"]
[PlyCount "55"]
[EventDate "2022.06.09"]
[EventType "team-tourn"]
[EventCountry "FRA"]
[SourceTitle "playchess.com"]
[Source "ChessBase"]
[SourceQuality "1"]
[TimeControl "40/5400+30:1800+30"]

{[%evp 9,55,15,14,0,0,0,0,-6,12,24,32,31,38,23,39,32,47,35,121,104,96,102,97,94,97,75,118,77,71,73,116,105,130,85,127,119,134,114,109,41,147,46,50,26,36,-240,-244,-356]} 1. d4 {[%emt 0:00:42]} d5 {[%emt 0:00:21]} 2. c4 {[%emt 0:05:35]} c6 {[%emt 0:00:47]} 3. Nf3 {[%emt 0:02:12]} Nf6 {[%emt 0:00:30]} 4. Nbd2 {[%emt 0:02:43]} Bf5 {[%emt 0:01:47]} 5. Nh4 {[%emt 0:00:36]} Be4 {[%emt 0:00:32]} 6. e3 {[%emt 0:00:21] D11: Slav Defence: 3 Nf3 sidelines and 3...Nf6 4 e3 Bg4.} e6 {[%emt 0:00:58]} 7. Be2 {[%emt 0:01:31]} h6 {[%emt 0:01:19]} 8. Qb3 {[%emt 0:15:12] [#] The position is equal.} Qc7 $146 {[%emt 0:04:27]} ({Predecessor:} 8... Qb6 9. c5 Qc7 10. Nxe4 dxe4 11. g3 Nbd7 12. O-O g5 13. Ng2 Bg7 14. Qc2 e5 {½-½ (62) Injac,T (2310)-Srdanovic,J (1835) Belgrade 2017}) 9. Nxe4 {[%emt 0:05:05]} Nxe4 {[%emt 0:09:59]} 10. Nf3 {[%emt 0:06:59][%cal Bh4f3,Bf3e5,Be5d3,Bd3f2][%mdl 32]} Nd7 {[%emt 0:02:29]} 11. Bd3 {[%emt 0:05:35]} Ndf6 {[%emt 0:07:59]} 12. Qc2 {[%emt 0:09:50]} Bb4+ {[%emt 0:12:59]} 13. Kf1 {[%emt 0:07:36]} b6 {[%emt 0:06:18]} (13... Bd6 $14) 14. cxd5 {[%emt 0:08:25]} exd5 {[%emt 0:02:23] [#]} 15. Ne5 $1 {[%emt 0:02:38]} O-O {[%emt 0:08:04]} 16. f3 {[%emt 0:03:15]} ({Don't take} 16. Nxc6 Bd6 $11) 16... Ng5 {[%emt 0:01:52]} 17. Qxc6 {[%emt 0:04:25]} Qe7 {[%emt 0:03:46]} 18. Ba6 {[%emt 0:04:13]} Bd6 {[%emt 0:03:12]} 19. Nd3 {[%emt 0:02:04]} Qe6 {[%emt 0:05:39]} 20. Qc2 {[%emt 0:03:04]} (20. Nf2 {with more complications.} Nh5 21. Bd2 Rae8 22. Rc1) 20... Rfe8 {[%emt 0:06:53][%cal Bf8e8,Be8e7,Be7e2,Be2d2][%mdl 32]} 21. Qe2 {[%emt 0:01:12]} Re7 {[%emt 0:03:49]} 22. Bd2 {[%emt 0:03:56] This bishop pair is nice.} Rae8 {[%emt 0:08:02]} 23. Nf2 {[%emt 0:00:47]} Nh5 {[%emt 0:01:28][%cal Od6h2] And now ...Bxh2! would win.} 24. g4 {[%emt 0:02:05]} (24. Qd1 $16) 24... Nf4 {[%emt 0:01:17] [#]} (24... Qf6 $1 $14 25. gxh5 Nxf3) 25. exf4 {[%emt 0:00:38]} (25. Qd1 $1 $16 Nfh3 26. Nxh3 Nxh3 27. Kg2) 25... Qxe2+ $14 {[%emt 0:01:09]} 26. Bxe2 {[%emt 0:00:06]} Rxe2 {[%emt 0:00:04]} 27. fxg5 {[%emt 0:02:34][%mdl 8192]} (27. Ne4 $1 $14 Rxd2 28. Nxd2 Bxf4 29. Rd1) 27... Rxd2 $19 {[%emt 0:00:13]} 28. Rd1 {[%emt 0:00:00] Weighted Error Value: White=0.35/Black=0.19 (very precise)} (28. gxh6 {keeps fighting.} gxh6 29. Rd1 Rxb2 30. a4) 0-1

[Event "FRA-ch Teams Top 16-A 2022"]
[Site "Chartres"]
[Date "2022.06.11"]
[Round "3.24"]
[White "Auvray, Juliette"]
[Black "Maisuradze, Nino"]
[Result "0-1"]
[ECO "B35"]
[WhiteElo "1970"]
[BlackElo "2207"]
[Annotator "TA"]
[PlyCount "82"]
[EventDate "2022.06.09"]
[EventType "team-tourn"]
[EventCountry "FRA"]
[SourceTitle "playchess.com"]
[Source "ChessBase"]
[SourceQuality "1"]
[TimeControl "40/5400+30:1800+30"]

{[%evp 14,82,29,40,39,20,20,18,11,10,8,1,8,14,8,9,17,-39,10,26,56,43,42,41,52,42,82,22,32,21,19,22,19,24,86,0,21,0,90,85,205,95,94,40,100,0,0,0,0,0,0,0,0,0,0,-193,-202,-186,-193,-192,-210,-991,-981,-944,-875,-847,-85,-832,-818,-29996,-29996]} 1. e4 {[%emt 0:00:03]} c5 {[%emt 0:01:35]} 2. Nf3 {[%emt 0:00:06]} Nc6 {[%emt 0:00:04]} 3. d4 {[%emt 0:00:11]} cxd4 {[%emt 0:00:05]} 4. Nxd4 {[%emt 0:00:12]} g6 {[%emt 0:02:27]} 5. Nc3 {[%emt 0:03:24]} Bg7 {[%emt 0:00:30]} 6. Be3 {[%emt 0:02:20]} Nf6 {[%emt 0:00:39]} 7. Bc4 {[%emt 0:05:26]} O-O {[%emt 0:01:08]} 8. Bb3 {[%emt 0:02:25]} Re8 {[%emt 0:02:26] B35: Sicilian: Accelerated Dragon with 5 Nc3: main line.} 9. f3 {[%emt 0:07:47]} e6 {[%emt 0:01:27][%cal Be7e6,Be6e5][%mdl 32]} 10. Qd2 {[%emt 0:06:26]} d5 {[%emt 0:01:43] The position is equal.} 11. O-O-O {[%emt 0:07:07] The main line 11.0-0-0 scores better than 11.exd5.} Nxd4 {[%emt 0:01:50]} 12. Bxd4 {[%emt 0:03:04] Threatens to win with exd5.} e5 $1 {[%emt 0:00:25]} 13. Bf2 {[%emt 0:01:49][%cal Rc3d5]} d4 {[%emt 0:00:22]} 14. Ne2 {[%emt 0:05:52]} a5 {[%emt 0:22:48] [#]} 15. Ba4 $146 {[%emt 0:08:29]} (15. c3 $1 $11) ({Predecessor:} 15. c3 Qc7 16. Kb1 a4 17. Bc2 dxc3 18. Nxc3 Be6 19. Qd6 Qc8 20. Qc5 Bf8 21. Qxc8 Rexc8 {½-½ (38) Kadric,D (2576)-Abdusattorov,N (2661) Sharjah 2022}) 15... Bd7 {[%emt 0:12:30]} (15... b5 $1 $15 16. Bxb5 Bd7 17. Bxd7 Nxd7) 16. Bxd7 $11 {[%emt 0:01:03]} Qxd7 {[%emt 0:01:06]} 17. c3 {[%emt 0:04:42]} Qe6 {[%emt 0:00:34]} 18. Kb1 {[%emt 0:01:09]} dxc3 {[%emt 0:00:16]} 19. Nxc3 {[%emt 0:01:10]} a4 {[%emt 0:04:16][%cal Ba5a4,Ba4a3][%mdl 32]} 20. Bh4 {[%emt 0:05:11]} ({White should play} 20. Qd6 $16) 20... a3 {[%emt 0:02:22]} 21. Bxf6 {[%emt 0:03:37]} Bxf6 {[%emt 0:00:25]} 22. b3 {[%emt 0:01:01]} Rec8 {[%emt 0:07:09]} 23. Nd5 {[%emt 0:02:43]} Rc6 {[%emt 0:02:34]} (23... h5 $11 {remains equal.}) 24. h4 {[%emt 0:09:03]} (24. Qb4 $16) 24... Rac8 {[%emt 0:01:11]} 25. h5 {[%emt 0:04:14]} g5 {[%emt 0:12:48]} (25... Bd8 $1 $11) 26. g4 $16 {[%emt 0:02:51]} h6 {[%emt 0:02:39]} (26... Be7 $16 {might work better.}) 27. Rc1 {[%emt 0:01:30]} (27. Qb4 $18) 27... Be7 {[%emt 0:07:21]} 28. Rhd1 {[%emt 0:03:14]} (28. Qa5 $16) 28... Bc5 {[%emt 0:00:39]} ({Black should try} 28... Bf8 $1 $14) 29. Rc2 {[%emt 0:03:21]} (29. Qa5 $1 $16) 29... Bd4 $11 {[%emt 0:01:56]} 30. Rxc6 {[%emt 0:00:49]} bxc6 {[%emt 0:00:47]} 31. Ne3 {[%emt 0:02:14]} Rb8 $36 {[%emt 0:02:16][%cal Ob8b3][%mdl 2048] Black has good play.} 32. Qd3 {[%emt 0:02:02]} (32. Nf5 Rxb3+ $1 {[%mdl 512]} 33. Kc1 Qc4+ 34. Qc2 Rc3 35. Rd2 Qf1+ 36. Rd1 Rxc2+ 37. Kxc2 Qc4+ 38. Kd2 Qxa2+ 39. Kd3 Qb3+ 40. Ke2 a2 41. Nxd4 exd4 42. Re1 Qc2+ 43. Kf1 d3 44. Kg1 d2 45. Rf1 d1=Q 46. Rxd1 Qxd1+ 47. Kf2 a1=Q 48. Kg3 Qh1 49. f4 Qag1#) 32... Bxe3 {[%emt 0:04:35]} 33. Qxe3 {[%emt 0:00:04][%mdl 4096] Endgame KQR-KQR} c5 {[%emt 0:00:06][%cal Bc6c5,Bc5c4][%mdl 32]} 34. Rc1 $2 {[%emt 0:00:47]} ({Wrong is} 34. Qxc5 $2 Rxb3+ $1 {[%mdl 512]} 35. Ka1 Rxf3 $19) (34. Qd2 $11) 34... c4 $1 $19 {[%emt 0:00:09][%cal Rc4b3]} 35. Rc3 {[%emt 0:00:51] [#]} Kg7 $1 {[%emt 0:01:58]} 36. Kc2 {[%emt 0:00:55]} cxb3+ {[%emt 0:00:40]} 37. Rxb3 $2 {[%emt 0:00:14]} (37. axb3 a2 38. Qa7) 37... Qc4+ {[%emt 0:01:47]} ({And not} 37... Rd8 38. Rxa3 Qc4+ 39. Kb2 $19) 38. Kb1 {[%emt 0:01:19]} Rc8 {[%emt 0:00:50]} 39. Qe1 {[%emt 0:00:35] Inhibits Qf1.} Qc2+ {[%emt 0:00:34]} 40. Ka1 {[%emt 0:00:04]} Rd8 {[%emt 0:00:29] ( -> ...Rd1+)} 41. Rb1 {[%emt 0:02:54] Prevents Rd1.} Rd2 {[%emt 0:00:21] Weighted Error Value: White=0.65/Black=0.18 (very precise)} 0-1

[Event "FRA-ch Teams Top 16-A 2022"]
[Site "Chartres"]
[Date "2022.06.11"]
[Round "3.25"]
[White "Jones, Gawain C B"]
[Black "Bailet, Pierre"]
[Result "1/2-1/2"]
[ECO "C55"]
[WhiteElo "2669"]
[BlackElo "2509"]
[Annotator "TA"]
[PlyCount "96"]
[EventDate "2022.06.09"]
[EventType "team-tourn"]
[EventCountry "FRA"]
[SourceTitle "playchess.com"]
[Source "ChessBase"]
[SourceQuality "1"]
[TimeControl "40/5400+30:1800+30"]

{[%evp 11,96,10,14,7,17,10,15,23,25,23,26,25,20,27,34,33,72,77,75,79,66,60,65,8,54,60,52,48,88,89,85,86,85,76,100,62,59,49,54,58,58,59,58,60,56,48,56,30,31,0,0,0,0,0,0,0,0,0,0,0,0,0,0,0,0,0,0,0,0,0,0,0,0,0,0,0,0,0,0,0,0,0,0,0,0,0,0]} 1. e4 {[%emt 0:00:49]} e5 {[%emt 0:00:39]} 2. Nf3 {[%emt 0:00:17]} Nc6 {[%emt 0:00:09]} 3. Bc4 {[%emt 0:00:04]} Nf6 {[%emt 0:00:21]} 4. d3 {[%emt 0:00:06]} Be7 {[%emt 0:00:17]} 5. O-O {[%emt 0:00:09]} O-O {[%emt 0:00:11]} 6. Nc3 {[%emt 0:00:09]} d6 {[%emt 0:01:17]} 7. a4 $1 {[%emt 0:00:04] C55: Two Knights: 4 d3, 4 d4 exd4 5 e5 and Max Lange Attack.} Bg4 {[%emt 0:11:05] 7...Be6 might become the main line.} 8. h3 {[%emt 0:00:24]} Bh5 {[%emt 0:00:18]} 9. Be3 {[%emt 0:00:33]} Nd4 {[%emt 0:04:31]} 10. Bxd4 {[%emt 0:01:35]} exd4 {[%emt 0:00:18]} 11. Nd5 {[%emt 0:00:23]} Nxd5 {[%emt 0:05:47]} 12. Bxd5 {[%emt 0:01:02]} c6 {[%emt 0:00:13]} 13. Bb3 {[%emt 0:00:26] [#]} d5 $146 {[%emt 0:06:32]} ({Predecessor:} 13... Bxf3 14. Qxf3 Bf6 15. Qg3 g6 16. f4 Qe7 17. a5 a6 18. Kh1 Rae8 19. Rf3 Bh4 {1-0 (35) Navara,D (2697)-Mazur,S (2416) Chess.com INT 2020}) 14. exd5 {[%emt 0:12:08]} Bd6 {[%emt 0:14:40]} 15. dxc6 {[%emt 0:08:48]} bxc6 {[%emt 0:00:14]} 16. g4 {[%emt 0:05:09]} Bg6 {[%emt 0:00:11]} 17. Qd2 {[%emt 0:00:13]} (17. Nxd4 $14 Qf6 18. Nf3 (18. Nxc6 $2 Qf4 $19)) 17... Qf6 {[%emt 0:05:53]} (17... Rb8 $11 {feels stronger.}) 18. Kg2 $14 {[%emt 0:00:40]} Rab8 {[%emt 0:11:51]} 19. Qg5 $1 {[%emt 0:09:19]} Bxd3 {[%emt 0:01:47]} 20. cxd3 {[%emt 0:00:57] [#] aiming for Qxf6.} Qxg5 {[%emt 0:05:28]} 21. Bxf7+ $1 {[%emt 0:00:28]} Rxf7 {[%emt 0:00:05]} 22. Nxg5 {[%emt 0:00:06]} Rfb7 {[%emt 0:00:05]} 23. Ne6 {[%emt 0:06:26]} c5 {[%emt 0:08:03]} 24. Rac1 {[%emt 0:02:35]} Rxb2 {[%emt 0:00:13]} 25. Nxc5 {[%emt 0:00:13]} Bxc5 {[%emt 0:01:07]} 26. Rxc5 {[%emt 0:00:08][%mdl 4096] Endgame KRR-KRR} Rd2 $1 {[%emt 0:00:45]} 27. Rc7 {[%emt 0:03:53]} Rf8 {[%emt 0:07:30]} 28. Rxa7 {[%emt 0:01:07] Rd7 is the strong threat.} h5 {[%emt 0:00:50]} 29. Rd7 {[%emt 0:10:53]} ({But not} 29. gxh5 Rxd3 30. Rd7 Rf5 $16) (29. Kg3 {keeps more tension.} Rxd3+ 30. Kh4 hxg4 31. hxg4 Rdf3 32. Rd7) 29... hxg4 {[%emt 0:02:40]} 30. Rxd4 {[%emt 0:10:15]} gxh3+ {[%emt 0:00:09] The position is equal.} 31. Kxh3 {[%emt 0:00:09]} Rfxf2 {[%emt 0:03:00]} 32. Rxf2 {[%emt 0:00:56]} Rxf2 $11 {[%emt 0:00:07] KR-KR} 33. Kg4 {[%emt 0:01:02]} Ra2 {[%emt 0:05:28]} 34. Kf5 {[%emt 0:05:03]} Kf7 {[%emt 0:00:53]} 35. Rd7+ {[%emt 0:01:12]} Ke8 {[%emt 0:00:06]} 36. Ra7 {[%emt 0:00:13]} Rd2 {[%emt 0:00:11]} 37. Ke4 {[%emt 0:03:07]} g5 {[%emt 0:00:08][%cal Bg7g5,Bg5g4,Bg4g3][%mdl 32]} 38. a5 {[%emt 0:06:33]} g4 {[%emt 0:00:57]} 39. a6 {[%emt 0:00:13]} g3 {[%emt 0:00:53]} 40. Ra8+ {[%emt 0:00:56]} Kf7 {[%emt 0:00:58]} 41. a7 {[%emt 0:30:21]} Ra2 {[%emt 0:31:15] [#] Strongly threatening ...g2.} 42. Rb8 {[%emt 0:08:02]} Rxa7 {[%emt 0:01:01]} 43. Kf3 {[%emt 0:00:19]} Ke6 {[%emt 0:00:38]} 44. Kxg3 {[%emt 0:00:13]} Rf7 {[%emt 0:00:28]} 45. Rb4 {[%emt 0:01:32]} Kd5 {[%emt 0:00:12]} 46. Rf4 {[%emt 0:00:06]} Rxf4 {[%emt 0:00:04]} 47. Kxf4 {[%emt 0:00:03]} Kd4 {[%emt 0:00:06]} 48. Kf3 {[%emt 0:00:03]} Kxd3 {[%emt 0:00:05] Weighted Error Value: White=0.06 (flawless) /Black=0.05 (flawless)} 1/2-1/2

[Event "FRA-ch Teams Top 16-A 2022"]
[Site "Chartres"]
[Date "2022.06.11"]
[Round "3.26"]
[White "Feller, Sebastien"]
[Black "Grandelius, Nils"]
[Result "1/2-1/2"]
[ECO "D13"]
[WhiteElo "2569"]
[BlackElo "2635"]
[Annotator "TA"]
[PlyCount "154"]
[EventDate "2022.06.09"]
[EventType "team-tourn"]
[EventCountry "FRA"]
[SourceTitle "playchess.com"]
[Source "ChessBase"]
[SourceQuality "1"]
[TimeControl "40/5400+30:1800+30"]

{[%evp 13,154,11,13,11,12,0,29,7,14,-21,-21,-25,-21,-21,-27,-20,-30,-39,-37,-37,-29,-26,-29,-45,-56,-52,-44,-51,-47,-60,-42,-65,-60,-68,-41,-44,-50,-106,-106,-113,-83,-90,-47,-97,-112,-97,0,-106,-82,-97,-6,-314,-170,-242,-254,-290,-220,-259,-234,-221,-247,-247,-247,-238,-234,-252,-221,-240,-141,-137,-107,-106,-106,-106,-82,-129,-127,-150,-121,-146,-158,-154,-86,-81,-58,-161,-154,-367,-138,-115,-8,-8,-8,-8,-8,-8,-8,-8,0,0,0,0,0,0,0,0,0,0,0,0,0,0,0,0,0,0,0,-26,-26,-33,-33,-33,-33,-33,-8,-8,-8,-33,-33,-33,-33,-33,-33,-77,-77,-77,0,0,0,0,0,0,0]} 1. Nf3 {[%emt 0:15:43]} d5 {[%emt 0:03:19]} 2. d4 {[%emt 0:02:23]} Nf6 {[%emt 0:00:43]} 3. c4 {[%emt 0:03:24]} c6 {[%emt 0:00:52]} 4. cxd5 {[%emt 0:02:11]} cxd5 {[%emt 0:01:31]} 5. Nc3 {[%emt 0:00:34]} Nc6 {[%emt 0:00:39]} 6. Bf4 {[%emt 0:00:39]} a6 {[%emt 0:02:37]} 7. Rc1 $1 {[%emt 0:01:22][%mdl 4] is recently more successful than 7.e3.} Bf5 {[%emt 0:04:26]} 8. Ne5 {[%emt 0:01:31] D13: Slav Defence: Exchange variation without ...Bf5.} Rc8 {[%emt 0:08:29]} 9. f3 {[%emt 0:01:23] [#]} Bd7 $146 {[%emt 1:12:24]} ({Predecessor:} 9... g6 10. g4 Be6 11. e3 Bg7 12. h4 h5 13. g5 Nd7 14. Nxc6 Rxc6 15. Bd3 O-O {½-½ (29) Carlsen,M (2775)-Anand,V (2798) Bilbao 2008}) 10. e4 {[%emt 0:20:41] White has an edge.} e6 {[%emt 0:00:00]} 11. exd5 {[%emt 0:20:16]} (11. Nxd7 {with more complications.} Qxd7 12. e5 Ng8 13. Be3) 11... Nxd5 {[%emt 0:00:00]} 12. Nxd5 {[%emt 0:00:07]} exd5 {[%emt 0:01:30]} 13. Nxc6 {[%emt 0:26:46] Active counter play!} Rxc6 {[%emt 0:00:30]} 14. Rxc6 {[%emt 0:00:30]} Bxc6 {[%emt 0:00:30]} 15. Bd3 {[%emt 0:00:00]} Bb4+ {[%emt 0:00:00]} 16. Kf2 {[%emt 0:00:00]} O-O {[%emt 0:00:00][%cal Bh8f8,Bf8e8,Be8e4][%mdl 32]} 17. Qc2 {[%emt 0:00:00]} h6 {[%emt 0:00:00][%cal Bh7h6,Bh6h5,Bh5h4][%mdl 32]} 18. a3 {[%emt 0:00:00]} Ba5 {[%emt 0:00:00]} 19. g3 {[%emt 0:00:00]} Bb6 {[%emt 0:00:00]} 20. Be3 {[%emt 0:03:00]} Qf6 {[%emt 0:03:00]} 21. Rd1 {[%emt 0:00:30]} Re8 {[%emt 0:00:00][%cal Oe8e3]} 22. Bf1 {[%emt 0:00:30]} h5 {[%emt 0:01:00]} 23. Qd2 {[%emt 0:00:30]} g6 {[%emt 0:00:30]} 24. Kg2 {[%emt 0:00:30]} h4 {[%emt 0:00:30]} 25. Kf2 {[%emt 0:00:30]} (25. gxh4 $15 Qxh4 26. Bg5) 25... Bd7 {[%emt 0:00:00]} 26. b3 {[%emt 0:00:30]} Re4 {[%emt 0:01:00]} 27. Be2 {[%emt 0:00:30]} Bh3 {[%emt 0:00:00]} 28. Kg1 {[%emt 0:00:00]} ({Better is} 28. a4 $15) 28... Re8 $17 {[%emt 0:00:00]} 29. Kf2 {[%emt 0:01:00]} Bd7 {[%emt 0:01:30]} 30. Bf1 $1 {[%emt 0:00:30]} Qe7 {[%emt 0:00:30]} 31. a4 {[%emt 0:00:00]} Ba5 {[%emt 0:00:00]} 32. Qe2 $2 {[%emt 0:00:24][%mdl 8192]} (32. Bg5 $11) 32... Qb4 {[%emt 0:00:05]} (32... Qa3 $142 33. g4 f5) 33. Qa2 {[%emt 0:00:30]} (33. Qc2 $142) 33... Qc3 $19 {[%emt 0:00:32]} 34. Bf4 {[%emt 0:00:30]} Re1 {[%emt 0:00:44]} 35. Qb1 {[%emt 0:00:32][%cal Rd1e1]} hxg3+ {[%emt 0:00:32]} 36. hxg3 {[%emt 0:00:02][%cal Rd1e1]} Bf5 {[%emt 0:00:31]} 37. Qc1 {[%emt 0:00:12][%cal Rd1e1]} Rxd1 {[%emt 0:00:14]} 38. Qxd1 {[%emt 0:00:05]} Bb6 {[%emt 0:00:35]} 39. g4 {[%emt 0:01:38]} Bxd4+ {[%emt 0:00:38]} 40. Kg3 {[%emt 0:00:36]} Be6 {[%emt 0:00:35]} (40... Bc2 $19 41. Qe2 Qc6) 41. Qd2 $17 {[%emt 0:02:07]} Be5 {[%emt 0:11:44] Threatens to win with ...Qxd2.} 42. Qxc3 {[%emt 0:06:40]} Bxc3 {[%emt 0:00:16][%mdl 4096] Endgame KBB-KBB} 43. Kf2 {[%emt 0:01:55]} Kf8 {[%emt 0:08:03]} 44. Bd6+ {[%emt 0:03:01]} ({White should try} 44. Bd3) 44... Ke8 $1 {[%emt 0:00:04] White must now prevent ...Kd7.} 45. Bd3 {[%emt 0:01:10]} Kd7 {[%emt 0:02:28]} 46. Bf8 {[%emt 0:00:07]} d4 {[%emt 0:04:17]} 47. b4 {[%emt 0:00:06]} Bd2 {[%emt 0:04:17]} (47... Bb3 $142 48. a5 Ke6) 48. Ke2 {[%emt 0:01:04]} Bf4 {[%emt 0:00:21] And now ...Bd6 would win.} 49. Bc5 {[%emt 0:01:42]} (49. b5 $15) 49... Bd6 $1 $19 {[%emt 0:01:26] ...Bxc5 is the strong threat.} 50. Be4 $2 {[%emt 0:00:16] [#]} (50. Bxd4 $17 {was called for.} Bxb4 51. Be4) 50... Bc4+ $2 {[%emt 0:00:29]} (50... Bxc5 $1 $19 {and Black stays clearly on top.} 51. bxc5 Kc7) 51. Kd2 $17 {[%emt 0:00:15] [#]} b6 {[%emt 0:01:55]} ({Black should play} 51... Bf4+ $1 $17 52. Kc2 Be3) 52. Bxb6 $11 {[%emt 0:03:20]} Bxb4+ {[%emt 0:00:01]} 53. Kc2 {[%emt 0:00:09]} Bc3 {[%emt 0:00:08]} 54. Bd3 {[%emt 0:00:11]} Bd5 {[%emt 0:00:06]} 55. Bxa6 {[%emt 0:01:29]} Bxf3 {[%emt 0:00:02]} 56. Bb5+ {[%emt 0:00:25]} Kc8 {[%emt 0:01:27]} 57. g5 {[%emt 0:01:58]} Kb7 {[%emt 0:00:04]} 58. Bd8 {[%emt 0:01:07]} Be4+ {[%emt 0:00:32]} 59. Bd3 {[%emt 0:00:26]} Bd5 {[%emt 0:00:15]} 60. a5 {[%emt 0:00:19]} Kc8 {[%emt 0:00:36]} 61. Bb6 {[%emt 0:00:42]} Kb7 {[%emt 0:00:01]} 62. Bd8 {[%emt 0:00:14]} Kc8 {[%emt 0:00:57]} 63. Bb6 {[%emt 0:00:12]} Kb7 {[%emt 0:01:38]} 64. Bd8 {[%emt 0:00:30]} Bb4 {[%emt 0:00:33]} 65. a6+ {[%emt 0:03:09]} Ka7 {[%emt 0:00:01]} 66. Bb5 {[%emt 0:00:26]} Be4+ {[%emt 0:00:12]} 67. Bd3 $1 {[%emt 0:02:00]} Bxd3+ {[%emt 0:00:56]} (67... Bf5 {seems wilder.} 68. Bf6 Bc5 69. Kd2 Bxd3 70. Kxd3 Kxa6 71. Bxd4 Bb4) 68. Kxd3 {[%emt 0:00:02]} Kxa6 {[%emt 0:00:38]} 69. Kxd4 $15 {[%emt 0:00:08] KB-KB} Kb7 {[%emt 0:00:05]} 70. Ke4 {[%emt 0:00:15]} Kc8 {[%emt 0:00:03]} 71. Bf6 {[%emt 0:00:16]} Kd7 {[%emt 0:00:08]} 72. Kf4 {[%emt 0:00:06]} Ke6 {[%emt 0:00:05]} 73. Kg4 {[%emt 0:00:20]} Be7 {[%emt 0:00:03]} 74. Bc3 {[%emt 0:00:07]} f5+ {[%emt 0:00:07]} (74... Ba3 $17) 75. gxf6 $1 $11 {[%emt 0:00:18] The position is equal.} Bxf6 {[%emt 0:00:02]} 76. Bd2 {[%emt 0:00:18]} g5 {[%emt 0:00:03]} 77. Bxg5 {[%emt 0:00:18]} Bxg5 {[%emt 0:05:01] Black had all chances to win.  Weighted Error Value: White=0.26 (precise) /Black=0.27 (precise)} 1/2-1/2